bitfinex-derivatives/quotes_ETHF0:USTF0_20260119
["timestamp","ask_amount","ask_price","bid_price","bid_amount"]
[1768860174266,0.00257411,3215.5,3214.3,1.29181649]
[1768860174466,1.11866602,3215.4,3214.3,1.29181649]
[1768860174670,0.81799027,3215.3,3214.3,1.29181649]
[1768860174871,0.81799027,3215.2,3214.0,0.14295744]
[1768860175167,0.81799027,3215.1,3214.0,0.14295744]
[1768860175471,0.00257411,3215.5,3214.0,0.14295744]
[1768860175664,1.11864662,3215.4,3214.0,0.14295744]
[1768860175865,0.81797626,3215.3,3214.0,0.14295744]
[1768860176064,0.81797626,3215.2,3214.0,0.14295744]
[1768860176365,0.81797626,3215.1,3214.0,0.14295744]
[1768860176668,0.00257411,3215.5,3214.0,0.14295744]
[1768860176867,1.11862856,3215.4,3214.0,0.14295744]
[1768860177057,0.81796306,3215.3,3214.0,0.14295744]
[1768860177258,0.81796306,3215.2,3214.0,0.14295744]
[1768860177465,0.81796306,3215.1,3214.0,0.14295744]
[1768860177766,0.00257411,3215.5,3214.0,0.14295744]
[1768860177966,1.11861328,3215.4,3214.0,0.14295744]
[1768860178266,0.81795189,3215.3,3214.0,0.14295744]
[1768860178469,0.81795189,3215.2,3214.0,0.14295744]
[1768860178658,0.00257411,3215.5,3214.0,0.14295744]
[1768860178860,1.11860004,3215.4,3214.0,0.14295744]
[1768860179059,0.81794222,3215.3,3214.0,0.14295744]
[1768860179266,0.81794222,3215.2,3214.0,0.14295744]
[1768860179562,0.00257411,3215.5,3214.0,0.14295744]
[1768860179768,1.12265681,3215.4,3214.0,0.14295744]
[1768860179963,0.82200217,3215.3,3214.0,0.14295744]
[1768860180162,0.82200217,3215.2,3214.0,0.14295744]
[1768860180362,0.00257411,3215.5,3214.0,0.14295744]
[1768860180564,1.12264908,3215.4,3214.0,0.14295744]
[1768860180766,0.82199651,3215.3,3214.0,0.14295744]
[1768860180968,0.82199651,3215.2,3214.0,0.14295744]
[1768860181156,0.00257411,3215.5,3214.0,0.14295744]
[1768860181357,1.12264826,3215.4,3214.0,0.14295744]
[1768860181657,0.82199652,3215.3,3214.0,0.14295744]
[1768860181858,0.00257411,3215.5,3214.0,0.14295744]
[1768860182066,0.82260031,3215.4,3214.0,0.14295744]
[1768860182267,0.82260031,3215.3,3214.0,0.14295744]
[1768860182470,0.00257411,3215.5,3214.1,0.14295744]
[1768860182772,0.82257361,3215.4,3214.1,0.14295744]
[1768860182962,0.82257361,3215.3,3214.1,0.14295744]
[1768860183164,0.00257411,3215.5,3214.1,0.14295744]
[1768860183360,0.82256135,3215.4,3214.1,0.14295744]
[1768860183566,0.82256135,3215.3,3214.1,0.14295744]
[1768860183759,0.00257411,3215.5,3214.3,1.29146376]
[1768860183961,0.82256132,3215.4,3214.4,0.14295744]
[1768860184264,0.00257411,3215.5,3214.4,0.14295744]
[1768860184467,0.82252704,3215.4,3214.4,0.14295744]
[1768860184670,0.00257411,3215.5,3214.4,0.14295744]
[1768860184870,0.82252704,3215.4,3214.4,0.14295744]
[1768860185070,0.00257411,3215.5,3214.4,0.14295744]
[1768860185366,0.82250496,3215.4,3214.4,0.14295744]
[1768860185564,0.00257411,3215.5,3214.4,0.14295744]
[1768860185760,0.8225015,3215.4,3214.4,0.14295744]
[1768860186073,0.00257411,3215.5,3214.4,0.14295744]
[1768860186264,0.82248252,3215.4,3214.4,0.14295744]
[1768860186465,0.00257411,3215.5,3214.4,0.14295744]
[1768860186668,0.82247795,3215.4,3214.4,0.14295744]
[1768860186865,0.00257411,3215.5,3214.4,0.14295744]
[1768860187070,0.82247796,3215.4,3214.4,0.14295744]
[1768860187272,0.00257411,3215.5,3214.4,0.14295744]
[1768860187574,0.82245412,3215.4,3214.4,0.14295744]
[1768860187770,0.00257411,3215.5,3214.4,0.14295744]
[1768860187970,0.82245412,3215.4,3214.4,0.14295744]
[1768860188170,0.00257411,3215.5,3214.4,0.14295744]
[1768860188367,0.82243255,3215.4,3214.4,0.14295744]
[1768860188568,0.00257411,3215.5,3214.4,0.14295744]
[1768860188768,0.82243281,3215.4,3214.4,0.14295744]
[1768860188974,0.00257411,3215.5,3214.4,0.14295744]
[1768860189178,0.82243267,3215.4,3214.4,0.14295744]
[1768860189476,0.00257411,3215.5,3214.4,0.14295744]
[1768860189664,0.82241358,3215.4,3214.4,0.14295744]
[1768860189870,0.00257411,3215.5,3214.4,0.14295744]
[1768860190069,0.82241355,3215.4,3214.4,0.14295744]
[1768860190269,0.00257411,3215.5,3214.4,0.14295744]
[1768860190469,0.82239666,3215.4,3214.4,0.14295744]
[1768860190670,0.00257411,3215.5,3214.4,0.14295744]
[1768860190870,0.82239649,3215.4,3214.4,0.14295744]
[1768860191170,0.00257411,3215.5,3214.4,0.14295744]
[1768860191369,0.82238029,3215.4,3214.4,0.14295744]
[1768860191570,0.00257411,3215.5,3214.4,0.14295744]
[1768860191776,0.82238028,3215.4,3214.4,0.14295744]
[1768860191970,0.00257411,3215.5,3214.4,0.14295744]
[1768860192176,0.82238013,3215.4,3214.4,0.14295744]
[1768860192377,0.00257411,3215.5,3214.4,0.14295744]
[1768860192579,0.8223649,3215.4,3214.4,0.14295744]
[1768860192876,0.00257411,3215.5,3214.4,0.14295744]
[1768860193077,0.82264642,3215.4,3214.4,0.14295744]
[1768860193276,0.00257411,3215.5,3214.4,0.14295744]
[1768860193476,0.82263288,3215.4,3214.4,0.14295744]
[1768860193680,0.00257411,3215.5,3214.4,0.14295744]
[1768860193878,0.82263287,3215.4,3214.4,0.14295744]
[1768860194080,0.00257411,3215.5,3214.4,0.14295744]
[1768860194282,0.82263101,3215.4,3214.4,0.14295744]
[1768860194474,0.00257411,3215.5,3214.4,0.14295744]
[1768860194675,0.82262095,3215.4,3214.4,0.14295744]
[1768860194874,0.00257411,3215.5,3214.4,0.14295744]
[1768860195074,0.82262109,3215.4,3214.4,0.14295744]
[1768860195376,0.00257411,3215.5,3214.4,0.14295744]
[1768860195571,0.82260936,3215.4,3214.4,0.14295744]
[1768860195780,0.00257411,3215.5,3214.4,0.14295744]
[1768860195981,0.82260936,3215.4,3214.4,0.14295744]
[1768860196182,0.00257411,3215.5,3214.4,0.14295744]
[1768860196381,0.8225992,3215.4,3214.4,0.14295744]
[1768860196681,0.00257411,3215.5,3214.4,0.14295744]
[1768860196882,0.82259905,3215.4,3214.4,0.14295744]
[1768860197084,0.00257411,3215.5,3214.4,0.14295744]
[1768860197281,0.82259983,3215.4,3214.4,0.14295744]
[1768860197481,0.00257411,3215.5,3214.4,0.14295744]
[1768860197675,0.82257835,3215.4,3214.4,0.14295744]
[1768860197876,0.00257411,3215.5,3214.4,0.14295744]
[1768860198085,0.82257835,3215.4,3214.4,0.14295744]
[1768860198282,0.00257411,3215.5,3214.4,0.14295744]
[1768860198484,0.82256676,3215.4,3214.4,0.14295744]
[1768860198686,0.00257411,3215.5,3214.4,0.14295744]
[1768860198888,0.82256675,3215.4,3214.4,0.14295744]
[1768860199084,0.00257411,3215.5,3214.4,0.14295744]
[1768860199290,0.82256683,3215.4,3214.4,0.14295744]
[1768860199478,0.00257411,3215.5,3214.4,0.14295744]
[1768860199679,0.82255644,3215.4,3214.4,0.14295744]
[1768860199878,0.00257411,3215.5,3214.4,0.14295744]
[1768860200081,0.82255644,3215.4,3214.4,0.14295744]
[1768860200280,0.00257411,3215.5,3214.4,0.14295744]
[1768860200480,0.82254747,3215.4,3214.4,0.14295744]
[1768860200681,0.00257411,3215.5,3214.4,0.14295744]
[1768860200878,0.82254749,3215.4,3214.4,0.14295744]
[1768860201079,0.00257411,3215.5,3214.4,0.14295744]
[1768860201288,0.8225498,3215.4,3214.4,0.14295744]
[1768860201490,0.00257411,3215.5,3214.4,0.14295744]
[1768860201788,0.82256752,3215.4,3214.4,0.14295744]
[1768860201976,0.00257411,3215.5,3214.4,0.14295744]
[1768860202174,0.82256751,3215.4,3214.4,0.14295744]
[1768860202388,0.00257411,3215.5,3214.4,0.14295744]
[1768860202589,0.82259238,3215.4,3214.4,0.14295744]
[1768860202790,0.00257411,3215.5,3214.4,0.14295744]
[1768860202983,0.82259237,3215.4,3214.4,0.14295744]
[1768860203184,0.00257411,3215.5,3214.4,0.14295744]
[1768860203382,0.82275436,3215.4,3214.4,0.14295744]
[1768860203587,0.00257411,3215.5,3214.4,0.14295744]
[1768860203786,0.82275395,3215.4,3214.4,0.14295744]
[1768860203989,0.00257411,3215.5,3214.4,0.14295744]
[1768860204191,0.82275385,3215.4,3214.4,0.14295744]
[1768860204387,0.00257411,3215.5,3214.4,0.14295744]
[1768860204580,0.82278044,3215.4,3214.4,0.14295744]
[1768860204782,0.00257411,3215.5,3214.4,0.14295744]
[1768860205082,0.82278045,3215.4,3214.4,0.14295744]
[1768860205380,0.00257411,3215.5,3214.4,0.14295744]
[1768860205578,0.82281392,3215.4,3214.5,1.29146376]
[1768860205789,0.00257411,3215.5,3214.5,1.43524529]
[1768860205992,0.82280508,3215.4,3214.5,1.43524529]
[1768860206191,0.00257411,3215.5,3214.5,1.43524529]
[1768860206391,0.82279736,3215.4,3214.5,0.14378153]
[1768860206584,0.00257411,3215.5,3214.5,0.14378153]
[1768860206789,0.82279476,3215.4,3214.5,0.14378153]
[1768860206985,0.00257411,3215.5,3214.5,0.14378153]
[1768860207185,0.82279575,3215.4,3214.5,0.14378153]
[1768860207394,0.00257411,3215.5,3214.5,0.14378153]
[1768860207685,0.82283128,3215.4,3214.5,0.14378153]
[1768860207894,0.00257411,3215.5,3214.5,0.14378153]
[1768860208095,0.82283072,3215.4,3214.5,0.14378153]
[1768860208295,0.00257411,3215.5,3214.5,0.14378153]
[1768860208595,0.82288929,3215.4,3214.5,0.14378153]
[1768860208896,0.00257411,3215.5,3214.5,0.14378153]
[1768860209095,0.82287702,3215.4,3214.5,0.14378153]
[1768860209295,0.00257411,3215.5,3214.5,0.14378153]
[1768860209491,0.82190346,3215.4,3214.5,0.14378153]
[1768860209691,0.00257411,3215.5,3214.5,0.14378153]
[1768860209889,0.82190211,3215.4,3214.5,0.14378153]
[1768860210088,0.00257411,3215.5,3214.5,0.14378153]
[1768860210290,0.82188985,3215.4,3214.5,0.14378153]
[1768860210589,0.00257411,3215.5,3214.5,0.14378153]
[1768860210790,0.82188983,3215.4,3214.5,0.14378153]
[1768860210988,0.00257411,3215.5,3214.5,0.14378153]
[1768860211195,0.82188983,3215.4,3214.5,0.14378153]
[1768860211397,0.00257411,3215.5,3214.5,0.14378153]
[1768860211587,0.82197843,3215.4,3214.5,0.14378153]
[1768860211785,0.00257411,3215.5,3214.5,0.14378153]
[1768860211995,0.82197858,3215.4,3214.2,0.15566]
[1768860212186,0.00257411,3215.5,3214.2,0.15566]
[1768860212389,0.82203192,3215.4,3214.2,0.15566]
[1768860212590,0.00257411,3215.5,3214.2,0.15566]
[1768860212892,0.82203194,3215.4,3214.2,0.15566]
[1768860213090,0.00257411,3215.5,3214.2,0.15566]
[1768860213399,0.82211289,3215.4,3214.2,0.15566]
[1768860213591,0.00257411,3215.5,3214.2,0.15566]
[1768860213792,0.82211289,3215.4,3214.2,0.15566]
[1768860213997,0.00257411,3215.5,3214.2,0.15566]
[1768860214195,0.82211289,3215.4,3214.2,0.15566]
[1768860214395,0.00257411,3215.5,3214.2,0.15566]
[1768860214599,0.82211421,3215.4,3214.2,0.15566]
[1768860214801,0.00257411,3215.5,3214.2,0.15566]
[1768860215099,0.82211421,3215.4,3214.2,0.15566]
[1768860215295,0.00257411,3215.5,3214.2,0.15566]
[1768860215489,0.82211582,3215.4,3214.2,0.15566]
[1768860215690,0.00257411,3215.5,3214.2,0.15566]
[1768860215889,0.82211582,3215.4,3214.2,0.15566]
[1768860216090,0.00257411,3215.5,3214.2,0.15566]
[1768860216290,0.82211774,3215.4,3214.2,0.15566]
[1768860216599,0.00257411,3215.5,3214.2,0.15566]
[1768860216798,0.82211773,3215.4,3214.2,0.29944153]
[1768860217095,0.00257411,3215.5,3214.2,0.29944153]
[1768860217397,0.82211943,3215.4,3214.2,0.29944153]
[1768860217590,0.00257411,3215.5,3214.2,0.29944153]
[1768860217792,0.82211958,3215.4,3214.2,0.29944153]
[1768860217992,0.00257411,3215.5,3214.2,0.29944153]
[1768860218295,0.82211958,3215.4,3214.2,0.29944153]
[1768860218496,0.00257411,3215.5,3214.2,0.29944153]
[1768860218698,0.8221222,3215.4,3214.2,0.29944153]
[1768860218999,0.00257411,3215.5,3214.2,0.29944153]
[1768860219200,0.8221222,3215.4,3214.2,0.29944153]
[1768860219397,0.00257411,3215.5,3214.2,0.29944153]
[1768860219600,0.82212513,3215.4,3214.2,0.29944153]
[1768860219901,0.14305097,3215.5,3214.1,1.29146376]
[1768860220101,0.82212527,3215.4,3214.1,1.29146376]
[1768860220302,0.14305097,3215.5,3214.1,1.29146376]
[1768860220602,0.82213006,3215.4,3214.1,1.29146376]
[1768860220796,0.14305097,3215.5,3214.1,1.29146376]
[1768860221102,0.8221301,3215.4,3214.1,1.29146376]
[1768860221303,0.14305097,3215.5,3214.1,1.29146376]
[1768860221498,0.8221346,3215.4,3214.1,1.29146376]
[1768860221690,0.14305097,3215.5,3214.1,1.29146376]
[1768860221894,0.82213445,3215.4,3214.1,1.29146376]
[1768860222095,0.14305097,3215.5,3214.1,1.29146376]
[1768860222295,0.82213909,3215.4,3214.1,1.29146376]
[1768860222495,0.14305097,3215.5,3214.1,1.29146376]
[1768860222696,0.82213912,3215.4,3214.1,1.29146376]
[1768860222906,0.14305097,3215.5,3214.1,1.29146376]
[1768860223200,0.82213914,3215.4,3214.1,1.29146376]
[1768860223405,0.14305097,3215.5,3214.1,1.29146376]
[1768860223606,0.82217341,3215.4,3214.1,1.29146376]
[1768860223805,0.14305097,3215.5,3214.1,1.29146376]
[1768860224007,0.82217299,3215.4,3214.1,1.29146376]
[1768860224209,0.14305097,3215.5,3214.1,1.29146376]
[1768860224402,0.82217976,3215.4,3214.1,1.29146376]
[1768860224602,0.14305097,3215.5,3214.1,1.29146376]
[1768860224901,0.82217976,3215.4,3214.1,1.29146376]
[1768860225202,0.14305097,3215.5,3214.1,1.29146376]
[1768860225402,0.82218597,3215.4,3214.1,1.29146376]
[1768860225701,0.14305097,3215.5,3214.1,1.43100819]
[1768860226000,0.82218603,3215.4,3214.1,1.43100819]
[1768860226201,0.14305097,3215.5,3214.1,1.43100819]
[1768860226409,0.82219337,3215.4,3214.1,1.43100819]
[1768860226609,0.14305097,3215.5,3214.1,1.43100819]
[1768860226810,0.82219341,3215.4,3214.1,1.43100819]
[1768860227010,0.14305097,3215.5,3214.1,1.43100819]
[1768860227209,0.82219341,3215.4,3214.1,1.43100819]
[1768860227509,0.14305097,3215.5,3214.1,1.43100819]
[1768860227709,0.8222007,3215.4,3214.1,1.43100819]
[1768860228009,0.14305097,3215.5,3214.1,1.43100819]
[1768860228211,0.8222007,3215.4,3214.1,1.43100819]
[1768860228411,0.14305097,3215.5,3214.1,1.43100819]
[1768860228611,0.82220404,3215.4,3214.1,1.43100819]
[1768860228805,0.14305097,3215.5,3214.1,1.43100819]
[1768860229008,0.82220404,3215.4,3214.1,1.43100819]
[1768860229202,0.14305097,3215.5,3214.1,1.43100819]
[1768860229404,0.82220763,3215.4,3214.1,1.43100819]
[1768860229602,0.14305097,3215.5,3214.1,1.43100819]
[1768860229803,0.82220763,3215.4,3214.1,1.43100819]
[1768860230013,0.14305097,3215.5,3214.1,0.13954443]
[1768860230212,0.82220779,3215.4,3214.1,0.13954443]
[1768860230413,0.14305097,3215.5,3214.1,0.13954443]
[1768860230610,0.82221167,3215.4,3214.1,0.13954443]
[1768860230812,0.14305097,3215.5,3214.1,0.13954443]
[1768860231004,0.82221167,3215.4,3214.1,0.13954443]
[1768860231203,0.14305097,3215.5,3214.1,0.13954443]
[1768860231417,0.95248972,3215.4,3214.0,2.78551917]
[1768860231606,0.95248972,3215.3,3214.0,2.78551917]
[1768860231910,0.13027413,3215.3,3214.0,2.78551917]
[1768860236919,0.13027413,3215.3,3214.3,1.29148776]
[1768860242322,0.13027413,3215.3,3213.9,2.91590287]
[1768860242528,0.13027413,3215.3,3214.3,1.29148776]
[1768860246834,0.13027413,3215.3,3213.9,2.91590287]
[1768860247028,0.13027413,3215.3,3214.3,1.29148776]
[1768860247628,0.00257411,3215.5,3214.3,1.29148776]
[1768860247823,0.82202262,3215.4,3214.3,1.29148776]
[1768860248022,0.82202262,3215.3,3214.3,1.29148776]
[1768860248223,0.00257411,3215.5,3214.3,1.29148776]
[1768860248430,0.82202375,3215.4,3214.3,1.29148776]
[1768860248729,0.82202375,3215.3,3214.3,1.29148776]
[1768860248929,0.00257411,3215.5,3214.3,1.29148776]
[1768860249131,0.82202447,3215.4,3214.3,1.29148776]
[1768860249427,0.82202447,3215.3,3214.3,1.29148776]
[1768860249618,0.00257411,3215.5,3214.3,1.29148776]
[1768860249824,0.82202105,3215.4,3214.3,1.29148776]
[1768860250023,0.82202105,3215.3,3214.3,1.29148776]
[1768860250226,0.00257411,3215.5,3214.3,1.29148776]
[1768860250426,0.82203174,3215.4,3214.3,1.29148776]
[1768860250733,0.82203795,3215.3,3214.3,1.29148776]
[1768860250936,0.00257411,3215.5,3214.3,1.29148776]
[1768860251231,0.82203795,3215.4,3214.3,1.29148776]
[1768860251422,0.82203795,3215.3,3214.3,1.29148776]
[1768860251619,0.00257411,3215.5,3214.3,1.29148776]
[1768860251826,0.82203969,3215.4,3214.3,1.29148776]
[1768860252032,0.82203969,3215.3,3214.3,1.29148776]
[1768860252233,0.00257411,3215.5,3214.3,1.29148776]
[1768860252532,0.82203827,3215.4,3214.3,1.29148776]
[1768860252733,0.82203827,3215.3,3214.3,1.29148776]
[1768860252929,0.00257411,3215.5,3214.3,1.29148776]
[1768860253125,0.82203858,3215.4,3214.3,1.29148776]
[1768860253331,0.82203858,3215.3,3214.3,1.29148776]
[1768860253635,0.00257411,3215.5,3214.3,1.29148776]
[1768860253836,0.82204656,3215.4,3214.3,1.29148776]
[1768860254133,0.82204656,3215.3,3214.3,1.29148776]
[1768860254333,0.00257411,3215.5,3214.3,1.29148776]
[1768860254533,0.82204813,3215.4,3214.3,1.29148776]
[1768860254733,0.82204813,3215.3,3214.3,1.29148776]
[1768860254937,0.00257411,3215.5,3214.3,1.29148776]
[1768860255133,0.82202783,3215.4,3214.3,1.29148776]
[1768860255333,0.82202783,3215.3,3214.3,1.29148776]
[1768860255530,0.00257411,3215.5,3214.3,1.29148776]
[1768860255734,0.82202276,3215.4,3214.5,1.29148776]
[1768860255937,0.82202276,3215.3,3214.5,1.29148776]
[1768860256133,0.00257411,3215.5,3214.5,1.29148776]
[1768860256436,0.82202924,3215.4,3214.5,1.29148776]
[1768860256733,0.82202924,3215.3,3214.5,1.29148776]
[1768860256934,0.00257411,3215.5,3214.4,1.29148776]
[1768860257125,0.82202692,3215.4,3214.4,1.29148776]
[1768860257327,0.82202692,3215.3,3214.4,1.29148776]
[1768860257527,0.00257411,3215.5,3214.4,1.29148776]
[1768860257727,0.82203005,3215.4,3214.4,1.29148776]
[1768860257929,0.82203005,3215.3,3214.4,1.29148776]
[1768860258131,0.00257411,3215.5,3214.4,1.29148776]
[1768860258439,0.8220361,3215.4,3214.4,1.29148776]
[1768860258639,0.8220361,3215.3,3214.4,1.29148776]
[1768860258937,0.00257411,3215.5,3214.4,1.29148776]
[1768860259138,0.82203267,3215.4,3214.4,1.29148776]
[1768860259335,0.82203267,3215.3,3214.4,1.29148776]
[1768860259638,0.00257411,3215.5,3214.4,1.29148776]
[1768860259835,0.82203681,3215.4,3214.4,1.29148776]
[1768860260038,0.82203681,3215.3,3214.4,1.29148776]
[1768860260239,0.00257411,3215.5,3214.4,1.29148776]
[1768860260542,0.00257411,3215.5,3214.0,4.07700693]
[1768860260543,0.52602113,3215.4,3215.0,1.29148776]
[1768860260835,0.00257411,3215.5,3215.0,1.29148776]
[1768860261137,0.00257411,3215.5,3214.8,1.29148776]
[1768860262042,0.13827442,3215.5,3214.6,1.29148776]
[1768860267544,0.00257411,3215.5,3214.6,1.29148776]
[1768860270045,0.00257411,3215.5,3214.8,1.29148776]
[1768860272643,0.81855357,3215.4,3214.8,1.29148776]
[1768860272845,0.00257411,3215.5,3214.8,1.29148776]
[1768860273046,0.81855357,3215.4,3214.8,1.29148776]
[1768860273246,0.00257411,3215.5,3214.8,1.29148776]
[1768860273544,0.81855314,3215.4,3214.8,1.29148776]
[1768860273744,0.00257411,3215.5,3214.8,1.29148776]
[1768860273946,0.81855314,3215.4,3214.8,1.29148776]
[1768860274146,0.00257411,3215.5,3214.8,1.29148776]
[1768860274332,0.81855314,3215.4,3214.8,1.29148776]
[1768860274533,0.00257411,3215.5,3214.8,1.29148776]
[1768860274738,0.81855471,3215.4,3214.8,1.29148776]
[1768860274939,0.00257411,3215.5,3214.8,1.29148776]
[1768860275150,0.81855471,3215.4,3214.8,1.29148776]
[1768860275447,0.00257411,3215.5,3214.8,1.29148776]
[1768860275647,0.81855263,3215.4,3214.8,1.29148776]
[1768860275844,0.00257411,3215.5,3214.8,1.29148776]
[1768860276049,0.81855263,3215.4,3214.8,1.29148776]
[1768860276250,0.00257411,3215.5,3214.8,1.29148776]
[1768860276435,0.81856077,3215.4,3214.8,1.29148776]
[1768860276642,0.00257411,3215.5,3214.8,1.29148776]
[1768860276840,0.81855877,3215.4,3214.8,1.29148776]
[1768860277042,0.00257411,3215.5,3214.8,1.29148776]
[1768860277245,0.81859345,3215.4,3214.8,1.29148776]
[1768860277443,0.00257411,3215.5,3214.8,1.29148776]
[1768860277746,0.81858714,3215.4,3214.8,1.29148776]
[1768860277947,0.00257411,3215.5,3214.8,1.29148776]
[1768860278146,0.81858937,3215.4,3214.8,1.29148776]
[1768860278346,0.00257411,3215.5,3214.8,1.29148776]
[1768860278551,0.81859741,3215.4,3214.8,1.29148776]
[1768860278751,0.00257411,3215.5,3214.8,1.29148776]
[1768860278945,0.81859741,3215.4,3214.8,1.29148776]
[1768860279145,0.00257411,3215.5,3214.8,1.29148776]
[1768860279347,0.81859184,3215.4,3214.8,1.29148776]
[1768860279548,0.00257411,3215.5,3214.8,1.29148776]
[1768860279748,0.81859923,3215.4,3214.8,1.29148776]
[1768860280048,0.00257411,3215.5,3214.8,1.29148776]
[1768860280249,0.81858921,3215.4,3214.8,1.29148776]
[1768860280450,0.00257411,3215.5,3214.8,1.29148776]
[1768860280651,0.81860033,3215.4,3214.8,1.29148776]
[1768860280847,0.00257411,3215.5,3214.8,1.29148776]
[1768860281053,0.81860033,3215.4,3214.8,1.29148776]
[1768860281351,0.00257411,3215.5,3214.8,1.29148776]
[1768860281553,0.81863318,3215.4,3214.8,1.29148776]
[1768860281753,0.00257411,3215.5,3214.8,1.29148776]
[1768860281955,0.81863318,3215.4,3214.8,1.29148776]
[1768860282153,0.00257411,3215.5,3214.8,1.29148776]
[1768860282354,0.81862427,3215.4,3214.8,1.29148776]
[1768860282554,0.00257411,3215.5,3214.8,1.29148776]
[1768860282754,0.8186642,3215.4,3214.8,1.29148776]
[1768860282957,0.00257411,3215.5,3214.8,1.29148776]
[1768860283155,0.81865655,3215.4,3214.8,1.29148776]
[1768860283357,0.00257411,3215.5,3214.8,1.29148776]
[1768860283556,0.81868932,3215.4,3214.8,1.29148776]
[1768860283753,0.13671944,3215.5,3214.6,1.29148776]
[1768860283955,0.81868959,3215.4,3214.6,1.29148776]
[1768860284155,0.13671944,3215.5,3214.6,1.29148776]
[1768860284457,0.81869021,3215.4,3214.6,1.29148776]
[1768860284656,0.13671944,3215.5,3214.6,1.29148776]
[1768860284956,0.81871093,3215.4,3214.6,1.29148776]
[1768860285155,0.13671944,3215.5,3214.6,1.29148776]
[1768860285355,0.81871093,3215.4,3214.6,1.29148776]
[1768860285571,0.13671944,3215.5,3214.6,1.29148776]
[1768860285761,0.81871427,3215.4,3214.6,1.29148776]
[1768860285961,0.13671944,3215.5,3214.6,1.29148776]
[1768860286164,0.81871427,3215.4,3214.6,1.29148776]
[1768860286362,0.13671944,3215.5,3214.6,1.29148776]
[1768860286552,0.81871787,3215.4,3214.6,1.29148776]
[1768860286750,0.13671944,3215.5,3214.6,1.29148776]
[1768860286957,0.81871787,3215.4,3214.6,1.29148776]
[1768860287157,0.13671944,3215.5,3214.6,1.29148776]
[1768860287352,0.81871787,3215.4,3214.6,1.29148776]
[1768860287560,0.13671944,3215.5,3214.6,1.29148776]
[1768860287760,0.81872697,3215.4,3214.6,1.29148776]
[1768860287967,0.13671944,3215.5,3214.6,1.29148776]
[1768860288166,0.818721,3215.4,3214.6,1.29148776]
[1768860288362,0.13671944,3215.5,3214.6,1.29148776]
[1768860288562,0.8187249,3215.4,3214.6,1.29148776]
[1768860288766,0.13671944,3215.5,3214.6,1.29148776]
[1768860288966,0.81871918,3215.4,3214.6,1.29148776]
[1768860289168,0.13671944,3215.5,3214.6,1.29148776]
[1768860289466,0.81872348,3215.4,3214.6,1.29148776]
[1768860289661,0.13671944,3215.5,3214.6,1.29148776]
[1768860289864,0.81873787,3215.4,3214.6,1.29148776]
[1768860290065,0.13671944,3215.5,3214.6,1.29148776]
[1768860290264,0.81876461,3215.4,3214.6,1.29148776]
[1768860290463,0.81876461,3215.3,3214.6,1.29148776]
[1768860290655,0.13671944,3215.5,3214.6,1.29148776]
[1768860290858,0.81875043,3215.4,3214.6,1.29148776]
[1768860291061,0.81875043,3215.3,3214.6,1.29148776]
[1768860291268,0.13671944,3215.5,3214.6,1.29148776]
[1768860291466,0.81873226,3215.4,3214.6,1.29148776]
[1768860291765,0.81873226,3215.3,3214.6,1.29148776]
[1768860291967,0.13671944,3215.5,3214.6,1.29148776]
[1768860292166,0.81873226,3215.4,3214.6,1.29148776]
[1768860292362,0.81873226,3215.3,3214.6,1.29148776]
[1768860292665,0.13671944,3215.5,3214.6,1.29148776]
[1768860292868,0.81870549,3215.4,3214.6,1.29148776]
[1768860293080,0.13671944,3215.5,3214.6,1.29148776]
[1768860293262,0.81870215,3215.4,3214.6,1.29148776]
[1768860293467,0.13671944,3215.5,3214.6,1.29148776]
[1768860293669,0.81869698,3215.4,3214.6,1.29148776]
[1768860293867,0.13671944,3215.5,3214.6,1.29148776]
[1768860294066,0.81869698,3215.4,3214.6,1.29148776]
[1768860294268,0.13671944,3215.5,3214.6,1.29148776]
[1768860294467,0.81869232,3215.4,3214.6,1.29148776]
[1768860294766,0.13671944,3215.5,3214.6,1.29148776]
[1768860295066,0.81867895,3215.4,3214.6,1.29148776]
[1768860295266,0.13671944,3215.5,3214.6,1.29148776]
[1768860295566,0.81867651,3215.4,3214.6,1.29148776]
[1768860295766,0.13671944,3215.5,3214.6,1.29148776]
[1768860295971,0.81868098,3215.4,3214.6,1.29148776]
[1768860296173,0.13671944,3215.5,3214.6,1.29148776]
[1768860296471,0.81868116,3215.4,3214.6,1.29148776]
[1768860296670,0.13671944,3215.5,3214.6,1.29148776]
[1768860296871,0.81867962,3215.4,3214.2,1.29117247]
[1768860297073,0.13671944,3215.5,3214.2,1.29117247]
[1768860297274,0.81867965,3215.4,3214.2,1.29117247]
[1768860297573,0.13671944,3215.5,3214.2,1.29117247]
[1768860297774,0.81867832,3215.4,3214.2,1.29117247]
[1768860297964,0.13671944,3215.5,3214.2,1.29117247]
[1768860298164,0.81867829,3215.4,3214.2,1.29117247]
[1768860298365,0.13671944,3215.5,3214.2,1.29117247]
[1768860298663,0.81867712,3215.4,3214.2,1.29117247]
[1768860298864,0.13671944,3215.5,3214.2,1.29117247]
[1768860299065,0.81867732,3215.4,3214.2,1.29117247]
[1768860299265,0.13671944,3215.5,3214.2,1.29117247]
[1768860299465,0.8186538,3215.4,3214.2,1.29117247]
[1768860299669,0.13671944,3215.5,3214.2,1.29117247]
[1768860299962,0.81865408,3215.4,3214.2,1.29117247]
[1768860300168,0.13671944,3215.5,3214.2,1.29117247]
[1768860300464,0.81864741,3215.4,3214.2,1.29117247]
[1768860300662,0.13671944,3215.5,3214.2,1.29117247]
[1768860300864,0.81864047,3215.4,3214.2,1.29117247]
[1768860301170,0.13671944,3215.5,3214.2,1.29117247]
[1768860301371,0.81865856,3215.4,3214.2,1.29117247]
[1768860301570,0.13671944,3215.5,3214.2,1.29117247]
[1768860301770,0.818658,3215.4,3214.2,1.29117247]
[1768860301969,0.13237337,3215.4,3214.0,2.80082938]
[1768860302277,0.13237337,3215.2,3214.0,2.80082938]
[1768860305580,0.13237337,3215.2,3214.2,1.29117247]
[1768860306475,1.68076504,3216.0,3214.6,1.29117247]
[1768860306683,1.1193318,3215.9,3215.0,1.29117247]
[1768860306876,1.1193318,3215.8,3215.0,1.29117247]
[1768860307179,0.81864663,3215.7,3215.0,1.29117247]
[1768860307381,1.81313841,3216.2,3215.0,1.29117247]
[1768860307382,0.13237337,3216.2,3215.0,1.29117247]
[1768860307579,1.11884403,3216.1,3215.0,1.29117247]
[1768860307773,1.11884403,3216.0,3215.0,1.29117247]
[1768860307975,0.1359458,3216.2,3215.0,1.29117247]
[1768860307976,1.11884403,3215.9,3215.0,1.29117247]
[1768860308180,0.1359458,3216.2,3215.0,1.29117247]
[1768860309079,0.00357243,3216.2,3215.0,1.29117247]
[1768860312381,0.00357243,3216.2,3215.1,40.8]
[1768860312682,0.00357243,3216.2,3215.1,40.80319702]
[1768860314987,0.1359458,3216.2,3215.1,40.80319702]
[1768860337302,0.81784756,3216.1,3215.1,40.80319702]
[1768860337507,0.1359458,3216.2,3215.1,40.80319702]
[1768860337698,0.817847,3216.1,3215.1,40.80319702]
[1768860337895,0.1359458,3216.2,3215.1,40.80319702]
[1768860338095,0.81784645,3216.1,3215.1,40.80319702]
[1768860338296,0.1359458,3216.2,3215.1,40.80319702]
[1768860338504,0.81794638,3216.1,3215.1,40.80319702]
[1768860338704,0.1359458,3216.2,3215.1,40.80319702]